Cogmind - Beta 9.6 @@@ ROGUE MODE // 2020.09.02 @ 17:47:16 Player: Finestep Result: Destroyed by S-27 Virus with Autogun Performance ------------- Evolutions (3) 1500 Regions Visited (13) 2600 Robots Destroyed (271) 1355 Value Destroyed (9151) 9151 Prototype IDs (28) 560 Alien Tech Used (0) 0 Bonus (3222) 3222 TOTAL SCORE: 18388 Bonus ------- High Alert Combat Kills 719 Follower Combat Kills 200 Entered Garrisons 600 Used RIF Installer 1500 Aligned with FarCom 300 Friendly Fire -97 Cogmind --------- Core Integrity 0/700 Matter 272/300 Energy 147/160 System Corruption 1% Temperature Cool (218) Movement Walking (210) Ox3 Location -7/Storage Parts ------- > --- POWER (1) -------- Light Nuclear Core > --- PROPULSION (2) --- Potential Leg > --- UTILITY (7) ------ Large Storage Unit High-capacity Storage Unit High-capacity Storage Unit Enhanced Optical Array Advanced Targeting Computer Improved Light Armor Plating > --- WEAPON (3) ------- Compact Ion Cannon Compact Ion Cannon Datajack > --- INVENTORY (26) --- Improved Deuterium Engine Potential Leg Lightpack 2.0 High-capacity Battery (400) Compact Matter Pod (150) Advanced Targeting Computer Relay Coupler [NC] (33) Relay Coupler [NC] (33) Relay Coupler [NC] (33) Relay Coupler [Grunt] (26) Relay Coupler [Brawler] (27) Relay Coupler [Duelist] (23) Relay Coupler [Sentry] (22) Relay Coupler [Demolisher] (24) Relay Coupler [Specialist] (21) Relay Coupler [Behemoth] (9) Compact Ion Cannon Compact Ion Cannon Compact Ion Cannon Guided Plasma Cannon Shock Bomb Launcher Great Axe Peak State ------------ > --- POWER ------------ Light Angular Momentum Engine > --- PROPULSION ------- Potential Leg Potential Leg > --- UTILITY ---------- Large Storage Unit Large Storage Unit High-capacity Storage Unit Advanced Targeting Computer Medium Reactive Plating Relay Coupler [Grunt] Relay Coupler [Hunter] > --- WEAPON ----------- Plasma Cannon Improved Assault Rifle Remote Datajack > --- INVENTORY -------- Light Nuclear Core High-capacity Storage Unit Lightpack 2.0 High-capacity Battery Compact Matter Pod Enhanced Optical Array Advanced Targeting Computer Weapon Cycler Relay Coupler [NC] Relay Coupler [Swarmer] Relay Coupler [Grunt] Relay Coupler [Grunt] Relay Coupler [Duelist] Relay Coupler [Sentry] Relay Coupler [Demolisher] Relay Coupler [Specialist] Relay Coupler [Behemoth] Guided Plasma Cannon Shock Bomb Launcher Datajack Great Axe [Rating: 62] Favorites ----------- Power Nuclear Core Engine Ion Engine Power Core Nuclear Core Propulsion Improved Treads Treads Improved Treads Leg Carbon-fiber Leg Wheel Armored Wheel Utility Large Storage Unit Device Weapon Cycler Storage Large Storage Unit Processor Advanced Targeting Computer Hackware Relay Coupler [Hunter] Protection Improved Medium Armor Plating Weapon Minigun Energy Gun Medium Laser Energy Cannon Plasma Cannon Ballistic Gun Minigun Ballistic Cannon Light Cannon Launcher Shock Bomb Launcher Special Weapon Mining Laser Slashing Weapon Great Axe Special Melee Weapon Datajack Build | -11 -10 -10 -9 -9 -9 -8 -8 -8 -8 -8 -7 -7 -7 ------- Run | Scr Mat Min Mat Min Exi Min Mat Gar Mat Gar Fac Gar Sto Slots Evolved 6 | . . . 2 . . . 2 . . . 2 . . Power . | . . . . . . . . . . . . . . Propulsion . | . . . . . . . . . . . . . . Utility 5 | . . . 2 . . . 1 . . . 2 . . Weapon 1 | . . . . . . . 1 . . . . . . Parts Attached 242 | 7 23 4 32 8 4 6 18 31 3 16 34 35 21 Power 16 | 1 1 1 4 1 . . . 1 1 . 2 2 2 Engine 7 | 1 1 1 3 . . . . . . . 1 . . Core 9 | . . . 1 1 . . . 1 1 . 1 2 2 Reactor . | . . . . . . . . . . . . . . Propulsion 39 | 2 6 2 7 3 1 . 6 2 . 1 4 2 3 Treads 26 | 2 2 2 7 2 1 . 6 2 . 1 1 . . Leg 9 | . 2 . . . . . . . . . 2 2 3 Wheel 4 | . 2 . . 1 . . . . . . 1 . . Hover . | . . . . . . . . . . . . . . Flight . | . . . . . . . . . . . . . . Utility 54 | 2 3 . 5 1 1 1 6 9 1 3 11 9 2 Device 3 | . . . . . . . . . . . 1 2 . Storage 11 | 2 3 . 1 . 1 . 2 . . . 1 1 . Processor 2 | . . . . . . . 1 . . . . 1 . Hackware 15 | . . . . . . . . 4 1 1 4 4 1 Protection 23 | . . . 4 1 . 1 3 5 . 2 5 1 1 Artifact . | . . . . . . . . . . . . . . Weapon 133 | 2 13 1 16 3 2 5 6 19 1 12 17 22 14 Energy Gun 3 | . 1 . . . . . 1 . . . . 1 . Energy Cannon 7 | . . . . . . . . . . . 1 2 4 Ballistic Gun 75 | 2 6 . 13 3 2 3 4 11 . 7 9 10 5 Ballistic Cannon 7 | . 4 1 2 . . . . . . . . . . Launcher 12 | . . . 1 . . 2 . 1 . 3 1 3 1 Special Weapon 4 | . 2 . . . . . . . . . 1 1 . Impact Weapon . | . . . . . . . . . . . . . . Slashing Weapon 8 | . . . . . . . 1 3 . 2 1 . 1 Piercing Weapon . | . . . . . . . . . . . . . . Special Melee Weapon 17 | . . . . . . . . 4 1 . 4 5 3 Unidentified Prototypes 3 | . . . 1 . . . 1 . . . . . 1 Parts Lost 36 | . 2 1 1 7 . . . . . 1 9 11 4 Power 6 | . . . . 1 . . . . . . 2 3 . Propulsion 9 | . 1 1 . 3 . . . . . . 2 . 2 Utility 5 | . . . 1 1 . . . . . . 2 1 . Weapon 16 | . 1 . . 2 . . . . . 1 3 7 2 Highest Loss Streak 5 | . 1 1 1 2 . . . . . 1 5 5 4 Average Slot Usage (%) 99 | . 99 100 99 99 100 100 99 100 100 100 96 95 96 Engine 2 | . 14 14 2 6 . . . . . . . 1 . Core 7 | . . . 8 4 11 11 9 9 9 9 6 3 5 Treads 15 | . 16 14 21 14 19 22 17 18 18 18 10 . . Leg 2 | . 4 . . . . . . . . . . 15 14 Wheel 1 | . 7 14 . 6 2 . . . . . 2 . . Storage 28 | . 28 28 33 33 33 33 27 27 27 27 23 23 23 Processor 5 | . . . . . . . 6 9 9 9 7 12 15 Hackware 3 | . . . . . . . . . 5 . 17 10 14 Protection 7 | . . . 10 10 11 11 11 8 3 8 4 3 . Ballistic Gun 20 | . 17 . 16 21 22 22 25 25 22 26 20 18 16 Ballistic Cannon 1 | . 1 28 5 . . . . . . . . . . Naked Turns . | . . . . . . . . . . . . . . Heaviest Build 106 | 15 43 43 69 69 81 86 90 88 86 89 106 106 97 Greatest Support 60 | 40 40 12 43 43 46 46 46 46 40 40 60 60 30 Greatest Overweight (x) 5 | . 3 3 1 5 5 1 3 2 2 2 3 3 4 Average Overweight (x) 1 | . 1 3 1 3 2 1 1 1 1 1 1 2 3 Largest Inventory Capacity 32 | 8 16 16 22 22 24 24 24 24 24 24 24 32 26 Average Capacity 22 | 6 11 16 22 22 23 24 24 24 24 24 24 25 26 Most Carried 26 | 5 16 16 22 22 23 23 24 24 24 24 24 26 26 Average Carried 21 | 3 10 15 21 19 21 22 23 23 24 22 22 23 25 Final Capacity 26 | 8 16 16 22 22 24 24 24 24 24 24 24 26 26 Final Carried 26 | 5 16 16 22 18 23 23 24 24 24 24 18 26 23 Class Distribution -------------------- 34% | Hauler-Mutant 23% | Hauler-Skirmisher 12% | Bothacker-Gunner 11% | Mutant 9% | Bothacker-Mutant 6% | Bothacker-Skirmisher Dominant Class ---------------- Mutant | -10/Materials Mutant | -10/Mines Hauler-Mutant | -9/Materials Hauler-Mutant | -9/Mines Hauler-Mutant | -9/Exiles Hauler-Mutant | -8/Mines Hauler-Skirmisher | -8/Materials Hauler-Skirmisher | -8/Garrison Bothacker-Mutant | -8/Materials Bothacker-Skirmisher | -8/Garrison Bothacker-Gunner | -7/Factory Bothacker-Gunner | -7/Garrison Bothacker-Gunner | -7/Storage Resources | -11 -10 -10 -9 -9 -9 -8 -8 -8 -8 -8 -7 -7 -7 ----------- Run | Scr Mat Min Mat Min Exi Min Mat Gar Mat Gar Fac Gar Sto Matter Collected 7628 | 290 294 374 1153 417 . 173 1079 909 58 677 885 514 805 Remotely . | . . . . . . . . . . . . . . Salvage Created 8982 | 168 657 387 1624 461 . 182 1389 894 58 812 909 572 869 Parts 572 | 15 34 23 122 38 . 22 88 52 4 58 49 31 36 Haulers Intercepted 8 | . 2 . 2 . . . 2 . . . . . 2 Recyclers Shooed 11 | . . 2 2 2 . . 3 . . . . . 2 Parts Field Recycled . | . . . . . . . . . . . . . . Retrieved Matter . | . . . . . . . . . . . . . . Parts Self-Destructed . | . . . . . . . . . . . . . . Prevented . | . . . . . . . . . . . . . . Kills | -11 -10 -10 -9 -9 -9 -8 -8 -8 -8 -8 -7 -7 -7 ------- Run | Scr Mat Min Mat Min Exi Min Mat Gar Mat Gar Fac Gar Sto Combat Hostiles Destroyed 208 | . 11 11 42 18 . 9 15 23 1 29 19 19 11 Melee 5 | . . . . . . . 1 3 . 1 . . . Guns 142 | . 11 . 28 18 . 4 14 17 1 16 16 7 10 Cannons 30 | . . 11 12 . . . . . . . 3 3 1 AOE 31 | . . . 2 . . 5 . 3 . 12 . 9 . Classes Destroyed 16 | 2 4 2 1 3 . . 4 . . . . . . Worker 14 | . 3 2 6 . . . 1 . . . 1 . 1 Builder 4 | . . . . 1 . . 2 . . . . . 1 Tunneler 9 | 3 . 1 . 2 . 1 2 . . . . . . Hauler 8 | . 2 . 2 . . . 2 . . . . . 2 Recycler 16 | 1 . 2 4 1 . . 5 . . . . . 3 Mechanic 1 | . . . . . . . 1 . . . . . . Operator 1 | . . . . . . . 1 . . . . . . Watcher 10 | . 2 . 3 . . . 4 . . . 1 . . Swarmer 95 | . . 7 21 13 . 6 3 7 . 19 3 14 2 Grunt 75 | . 11 2 14 2 . 2 2 11 . 8 11 5 7 Duelist 5 | . . . 2 . . 1 1 1 . . . . . Sentry 25 | . . 2 5 . . . 7 3 1 2 3 . 2 Demolisher 1 | . . . . 1 . . . . . . . . . Hunter 3 | . . . . . . . 1 1 . . 1 . . Programmer 2 | . . . . . . . 1 . . . 1 . . Assembled 2 | . . . . 2 . . . . . . . . . Best Kill Streak 8 | 4 3 6 5 4 . 3 7 5 1 8 8 5 4 Combat Bots Only 8 | . 2 3 5 4 . 3 3 5 1 8 8 5 4 Max Kills in Single Turn 3 | 1 1 1 3 1 . 3 2 3 1 3 2 3 1 Gunslinging 1 | . . . 1 . . . 1 1 . . 1 . . Exploded 3 | . . . 2 . . 3 . 3 . 3 . 3 . Melee 1 | . . . . . . . 1 1 . 1 . . . Uniques/NPCs Destroyed . | . . . . . . . . . . . . . . Combat | -11 -10 -10 -9 -9 -9 -8 -8 -8 -8 -8 -7 -7 -7 -------- Run | Scr Mat Min Mat Min Exi Min Mat Gar Mat Gar Fac Gar Sto Damage Taken 10067 | . 637 459 1432 892 . 111 678 727 182 557 1857 1625 910 Core 1191 | . 75 114 97 29 . 7 34 86 18 25 205 255 246 Absorbed by Shields 23 | . . . . . . . . 23 . . . . . Core Remaining (%) 65 | 100 . 24 . . . 66 . . . 70 . . . Volleys Fired 674 | 12 74 42 113 58 . 14 64 56 4 59 74 60 44 Largest 3 | 2 2 2 2 2 . 2 3 3 3 3 3 3 3 Hottest 180 | 40 100 70 70 46 . 45 78 75 73 73 128 128 180 Shots Fired 1543 | 24 145 84 224 114 . 26 192 164 10 137 183 124 116 Gun 1334 | 24 142 . 163 114 . 24 192 163 10 124 175 95 108 Cannon 174 | . . 84 60 . . . . . . . 4 19 7 Launcher 29 | . . . 1 . . 2 . 1 . 13 1 10 1 Special 6 | . 3 . . . . . . . . . 3 . . Kinetic 1421 | 24 90 84 223 114 . 24 192 163 10 124 175 90 108 Thermal 90 | . 55 . . . . . . . . . 4 24 7 Explosive 3 | . . . 1 . . 2 . . . . . . . Electromagnetic 26 | . . . . . . . . 1 . 13 1 10 1 Robot Hit Streak 23 | 6 18 9 16 10 . 10 18 20 3 18 23 7 22 Robot Miss Streak 5 | 3 3 5 4 5 . 2 3 3 1 3 2 4 3 Penetration Max 1 | . . . . . . . 1 . . . . . . Secondary Targets 27 | . 3 . 2 2 . 1 4 5 . 2 4 1 3 Max Gunslinging Chain 1 | . 1 . 1 1 . 1 1 1 . 1 1 1 1 Shots Hit Robots 996 | 16 101 44 140 68 . 17 140 99 7 68 142 71 83 Core Hits 431 | 7 39 19 73 32 . 12 52 42 2 39 51 34 29 Critical Hits 13 | . 1 . 3 2 . 1 2 . . 1 2 . 1 Critical Kills 2 | . . . 2 . . . . . . . . . . Critical Parts Destroyed 11 | . 1 . 1 2 . 1 2 . . 1 2 . 1 Melee Attacks 80 | . . . . . . . 13 23 1 13 10 15 5 Impact . | . . . . . . . . . . . . . . Slashing 36 | . . . . . . . 13 11 . 10 1 . 1 Piercing . | . . . . . . . . . . . . . . Sneak Attacks 23 | . . . . . . . 2 8 . 5 4 2 2 Combat Hostiles 9 | . . . . . . . 1 3 . 5 . . . Follow-up Attacks . | . . . . . . . . . . . . . . Damage Inflicted 16793 | 151 972 716 2436 992 . 448 2872 1836 97 1614 1955 1445 1259 Guns 12492 | 151 972 . 1738 992 . 201 2609 1247 94 869 1852 618 1149 Cannons 1581 | . . 716 454 . . . . . . . 103 198 110 Explosions 1559 | . . . 244 . . 247 . 96 . 343 . 629 . Melee 1143 | . . . . . . . 258 483 . 402 . . . Ramming 18 | . . . . . . . 5 10 3 . . . . Kinetic 13095 | 151 485 716 2192 992 . 201 2609 1247 94 869 1852 538 1149 Thermal 1383 | . 487 . . . . 64 . 33 . 28 103 558 110 Explosive 427 | . . . 244 . . 183 . . . . . . . Electromagnetic 727 | . . . . . . . . 63 . 315 . 349 . Impact . | . . . . . . . . . . . . . . Slashing 1143 | . . . . . . . 258 483 . 402 . . . Piercing . | . . . . . . . . . . . . . . Highest Corruption 1 | . . . . . . . . . . 1 . 1 1 Average Corruption 1 | . . . . . . . . . . 1 . 1 1 Corruption Purged . | . . . . . . . . . . . . . . Effects 21 | . . . . . . . . . . 3 . 11 7 Message Errors 11 | . . . . . . . . . . 1 . 6 4 Energy Discharges 3 | . . . . . . . . . . 1 . 2 . Data Loss (minor) 1 | . . . . . . . . . . . . . 1 Targeting Errors 5 | . . . . . . . . . . 1 . 3 1 Weapon Failures 1 | . . . . . . . . . . . . . 1 Overload Shots . | . . . . . . . . . . . . . . Overflow Damage 142 | . . . 17 . . . 86 22 . . . 14 3 Projectiles 7 | . . . 4 . . . . . . . . . 3 Explosions 28 | . . . 13 . . . . 1 . . . 14 . Melee 107 | . . . . . . . 86 21 . . . . . Knockbacks 13 | . . 9 4 . . . . . . . . . . Impact . | . . . . . . . . . . . . . . Kinetic 12 | . . 9 3 . . . . . . . . . . Secondary 1 | . . . 1 . . . . . . . . . . Self-Inflicted Damage 62 | . . . . . . . . . . 21 . 36 5 Shots 8 | . . . . . . . . . . 1 . 6 1 Rammed 3 | . . . . . . . 1 1 1 . . . . Targets Rammed 4 | . . . . . . . 1 2 1 . . . . Kicked . | . . . . . . . . . . . . . . Crushed 1 | . . . . . . . . 1 . . . . . Highest Temperature 346 | . 186 114 120 69 . 32 176 196 34 119 187 346 217 Average Temperature 40 | . 46 27 24 13 . 13 38 47 16 29 57 86 38 Received Heat Transfer 2964 | . 363 96 255 57 . . 135 246 90 153 807 477 285 Effects 1 | . . . . . . . . . . . . 1 . Shutdowns 1 | . . . . . . . . . . . . 1 . Siege Activations . | . . . . . . . . . . . . . . Robots Corrupted . | . . . . . . . . . . . . . . Combat Hostiles . | . . . . . . . . . . . . . . Parts Fried . | . . . . . . . . . . . . . . Impact Corruptions 1 | . . . 1 . . . . . . . . . . Robots Melted . | . . . . . . . . . . . . . . Combat Hostiles . | . . . . . . . . . . . . . . Parts Melted 7 | . 1 . . . . . . . . . 2 2 2 Heat Transferred 2776 | . 1406 . . . . 100 . 50 . 37 200 835 148 Parts Sabotaged . | . . . . . . . . . . . . . . Parts Stolen . | . . . . . . . . . . . . . . Parts Stripped . | . . . . . . . . . . . . . . Power Chain Reactions 11 | . . . . . . . . 1 . 5 . 4 1 Missiles Intercepted . | . . . . . . . . . . . . . . Alert | -11 -10 -10 -9 -9 -9 -8 -8 -8 -8 -8 -7 -7 -7 ------- Run | Scr Mat Min Mat Min Exi Min Mat Gar Mat Gar Fac Gar Sto Peak Influence 1088 | 20 154 218 718 414 . 99 310 930 490 1088 571 660 555 Average Influence 361 | 3 60 100 313 271 . 19 150 680 468 755 214 556 425 Maximum Alert Level 3 | . . 1 3 2 . . 1 3 2 3 2 2 2 Low Security (%) 35 | 100 100 87 21 11 . 100 62 2 . . 44 1 . Level 1 26 | . . 12 55 82 . . 37 7 . 19 51 11 50 Level 2 21 | . . . 18 6 . . . 36 100 17 4 86 49 Level 3 16 | . . . 4 . . . . 53 . 62 . . . Level 4 . | . . . . . . . . . . . . . . Level 5 . | . . . . . . . . . . . . . . High Security . | . . . . . . . . . . . . . . Max Security . | . . . . . . . . . . . . . . Squads Dispatched 27 | . 3 . 4 . . . 4 . 2 . 10 . 4 Investigation 8 | . 2 . 1 . . . . . 1 . 2 . 2 Extermination 1 | . . . . . . . . . . . 1 . . Reinforcement 8 | . 1 . 2 . . . 1 . . . 2 . 2 Assault 1 | . . . 1 . . . . . . . . . . Garrison 9 | . . . . . . . 3 . 1 . 5 . . Intercept . | . . . . . . . . . . . . . . Construction Impeded 4 | . . . 2 . . . . . . . 1 . 1 Haulers Reinforced 1 | . . . . . . . . . . . . . 1 Alert ID Control Effect 5 | . . . . . . . . . . . 1 . 4 Stealth | -11 -10 -10 -9 -9 -9 -8 -8 -8 -8 -8 -7 -7 -7 --------- Run | Scr Mat Min Mat Min Exi Min Mat Gar Mat Gar Fac Gar Sto Distress Signals 6 | . 2 1 . 1 . . 1 . . . 1 . . Communications Jammed . | . . . . . . . . . . . . . . Distress Signals . | . . . . . . . . . . . . . . Times Spotted 299 | . 21 19 52 21 . 9 25 30 7 28 33 32 22 Peak Tracking Total 8 | . 4 4 5 4 . 3 4 4 5 6 6 8 4 Tactical Retreats 29 | . 2 6 3 4 . . . 1 . 3 6 3 1 Traps | -11 -10 -10 -9 -9 -9 -8 -8 -8 -8 -8 -7 -7 -7 ------- Run | Scr Mat Min Mat Min Exi Min Mat Gar Mat Gar Fac Gar Sto Traps Triggered 25 | . 1 . 1 . . . . 5 . 10 2 5 1 Indirectly 7 | . . . . . . . . . . 5 2 . . Trap Hack Attempts . | . . . . . . . . . . . . . . Triggered . | . . . . . . . . . . . . . . Disarmed . | . . . . . . . . . . . . . . Reprogrammed . | . . . . . . . . . . . . . . Reused . | . . . . . . . . . . . . . . Traps Extracted . | . . . . . . . . . . . . . . Installed . | . . . . . . . . . . . . . . Triggered . | . . . . . . . . . . . . . . Exploded 1 | . . . . . . . 1 . . . . . . Machines | -11 -10 -10 -9 -9 -9 -8 -8 -8 -8 -8 -7 -7 -7 ---------- Run | Scr Mat Min Mat Min Exi Min Mat Gar Mat Gar Fac Gar Sto Machines Disabled 17 | . . . . . . 1 1 4 . 4 1 6 . Max in Single Turn 1 | . . . . . . 1 1 1 . 1 1 1 . Garrison Relay 12 | . . . . . . . . 4 . 4 . 4 . Machines Sabotaged . | . . . . . . . . . . . . . . Garrisons Compromised . | . . . . . . . . . . . . . . Overloaded Fab Kills . | . . . . . . . . . . . . . . Fab Network Shutdowns . | . . . . . . . . . . . . . . Hacking | -11 -10 -10 -9 -9 -9 -8 -8 -8 -8 -8 -7 -7 -7 --------- Run | Scr Mat Min Mat Min Exi Min Mat Gar Mat Gar Fac Gar Sto Machines Accessed 31 | . 7 . 6 . 1 . 6 . 1 . 5 . 5 Terminals 20 | . 7 . 3 . . . 3 . . . 2 . 5 Fabricators 1 | . . . . . . . . . . . 1 . . Repair Stations 2 | . . . 2 . . . . . . . . . . Recycling Units 1 | . . . . . . . 1 . . . . . . Scanalyzers 2 | . . . 1 . . . 1 . . . . . . Garrison Access 4 | . . . . . . . 1 . 1 . 2 . . Total Hacks 102 | . 32 . 22 . 1 . 17 . 3 . 14 . 13 Successful 57 | . 17 . 18 . 1 . 13 . 1 . 3 . 4 Failed 44 | . 14 . 4 . . . 4 . 2 . 11 . 9 Catastrophic 7 | . 1 . . . . . 1 . . . 2 . 3 Database Lockouts 1 | . 1 . . . . . . . . . . . . Manual 57 | . 24 . 10 . 1 . 8 . 2 . 6 . 6 Terminals 70 | . 32 . 12 . . . 7 . . . 6 . 13 Fabricators 2 | . . . . . . . . . . . 2 . . Repair Stations 8 | . . . 8 . . . . . . . . . . Recycling Units 2 | . . . . . . . 2 . . . . . . Scanalyzers 8 | . . . 2 . . . 6 . . . . . . Garrison Access 11 | . . . . . . . 2 . 3 . 6 . . Terminal Hacks 21 | . 11 . 5 . 1 . 2 . . . 1 . 1 Robot Analysis 2 | . 2 . . . . . . . . . . . . Prototype ID Bank 2 | . 2 . . . . . . . . . . . . Open Door 1 | . . . . . . . . . . . . . 1 Branch Access Points 1 | . . . 1 . . . . . . . . . . Terminal Index 1 | . . . . . . . 1 . . . . . . Fabricator Index 1 | . . . . . . . . . . . 1 . . Unreport Threat 1 | . 1 . . . . . . . . . . . . Recall Investigation 1 | . 1 . . . . . . . . . . . . Hauler Manifests 2 | . 1 . 1 . . . . . . . . . . Zone Layout 8 | . 4 . 3 . . . 1 . . . . . . EX-Prototype ID Bank 1 | . . . . . 1 . . . . . . . . Fabricator Hacks . | . . . . . . . . . . . . . . Repair Station Hacks 7 | . . . 7 . . . . . . . . . . Scan Component 4 | . . . 4 . . . . . . . . . . Repair 3 | . . . 3 . . . . . . . . . . Recycling Unit Hacks . | . . . . . . . . . . . . . . Scanalyzer 8 | . . . 2 . . . 6 . . . . . . Insert Component 4 | . . . 1 . . . 3 . . . . . . Analyze 4 | . . . 1 . . . 3 . . . . . . Garrison Access Hacks 3 | . . . . . . . 1 . 1 . 1 . . Unlock Access 3 | . . . . . . . 1 . 1 . 1 . . Unauthorized Hacks 18 | . 6 . 4 . . . 4 . . . 1 . 3 Terminals 15 | . 6 . 4 . . . 2 . . . . . 3 Track 6 | . 3 . 2 . . . . . . . . . 1 Assimilate 1 | . . . . . . . 1 . . . . . . Botnet 7 | . 2 . 2 . . . 1 . . . . . 2 Operators 1 | . 1 . . . . . . . . . . . . Fabricators . | . . . . . . . . . . . . . . Repair Stations . | . . . . . . . . . . . . . . Recycling Units 1 | . . . . . . . 1 . . . . . . Mask 1 | . . . . . . . 1 . . . . . . Scanalyzers . | . . . . . . . . . . . . . . Garrison Access 2 | . . . . . . . 1 . . . 1 . . Restock 2 | . . . . . . . 1 . . . 1 . . Data Cores Recovered . | . . . . . . . . . . . . . . Used . | . . . . . . . . . . . . . . Hacking Detections 28 | . 7 . 5 . . . 5 . 1 . 5 . 5 Full Trace Events 5 | . . . . . . . . . 1 . 2 . 2 Feedback Events . | . . . . . . . . . . . . . . Feedback Blocked . | . . . . . . . . . . . . . . Robot Schematics Acquired . | . . . . . . . . . . . . . . Robots Built . | . . . . . . . . . . . . . . Matter . | . . . . . . . . . . . . . . Time . | . . . . . . . . . . . . . . Total Robot Build Rating . | . . . . . . . . . . . . . . Part Schematics Acquired 4 | . . . 1 . . . 3 . . . . . . Parts Built . | . . . . . . . . . . . . . . Matter . | . . . . . . . . . . . . . . Time . | . . . . . . . . . . . . . . Total Part Build Rating . | . . . . . . . . . . . . . . Parts Repaired 3 | . . . 3 . . . . . . . . . . Time 96 | . . . 96 . . . . . . . . . . Parts Recycled . | . . . . . . . . . . . . . . Recycled Matter . | . . . . . . . . . . . . . . Retrieved Matter . | . . . . . . . . . . . . . . Retrieved Components . | . . . . . . . . . . . . . . Parts Scanalyzed 4 | . . . 1 . . . 3 . . . . . . Part Schematics Acquired 4 | . . . 1 . . . 3 . . . . . . Parts Damaged . | . . . . . . . . . . . . . . Bothacking | -11 -10 -10 -9 -9 -9 -8 -8 -8 -8 -8 -7 -7 -7 ------------ Run | Scr Mat Min Mat Min Exi Min Mat Gar Mat Gar Fac Gar Sto Used RIF Installer 3 | . . . . . . . . 1 . 1 . 1 . Alert ID Control 1 | . . . . . . . . . . 1 . . . Autooverride 1 | . . . . . . . . . . . . 1 . Robots Hacked 25 | . . . . . . . . 6 . 3 5 8 3 Non-combat 3 | . . . . . . . . . . . 3 . . Combat 22 | . . . . . . . . 6 . 3 2 8 3 Autooverrided 1 | . . . . . . . . . . . . . 1 Robot Hacks Applied 26 | . . . . . . . . 6 . 3 7 8 2 find_chute 1 | . . . . . . . . . . . 1 . . purge_threat 2 | . . . . . . . . . . . 2 . . find_terminals 1 | . . . . . . . . . . . 1 . . map_route 1 | . . . . . . . . . . . 1 . . spike_heat 1 | . . . . . . . . . . . . 1 . reboot_system 2 | . . . . . . . . 1 . 1 . . . overwrite_iff 2 | . . . . . . . . . . . . 2 . streamctrl_high 4 | . . . . . . . . . . 2 1 1 . formatsys_high 12 | . . . . . . . . 5 . . 1 4 2 Relay Couplers Released 58 | . . . . . . . 4 18 . 17 . 19 . Machine Destruction 54 | . . . . . . . . 18 . 17 . 19 . Programmers 4 | . . . . . . . 4 . . . . . . Attached 15 | . . . . . . . . 4 1 1 4 4 1 Robots Rewired . | . . . . . . . . . . . . . . Allies Hacked . | . . . . . . . . . . . . . . Hacks Repelled . | . . . . . . . . . . . . . . Allies | -11 -10 -10 -9 -9 -9 -8 -8 -8 -8 -8 -7 -7 -7 -------- Run | Scr Mat Min Mat Min Exi Min Mat Gar Mat Gar Fac Gar Sto Total Allies 20 | . . . . . . . 1 5 . 2 2 7 3 Largest Group 4 | . . . . . . . 1 4 2 2 1 3 3 Highest-Rated Group 62 | . . . . . . . 10 62 30 32 16 48 48 Highest-Rated Ally 32 | . . . . . . . 10 16 15 16 16 16 32 Total Orders 21 | . . . . . . . 6 12 1 1 . . 1 STAY 2 | . . . . . . . . 2 . . . . . GOTO 11 | . . . . . . . 3 5 1 1 . . 1 FOLLOW 8 | . . . . . . . 3 5 . . . . . Ally Attacks 110 | . . . . . . . . 31 7 11 11 10 40 Total Damage 1416 | . . . . . . . . 505 66 89 152 115 489 Kills 8 | . . . . . . . . 2 1 . 1 . 4 Allies Corrupted . | . . . . . . . . . . . . . . Allies Melted . | . . . . . . . . . . . . . . Intel | -11 -10 -10 -9 -9 -9 -8 -8 -8 -8 -8 -7 -7 -7 ------- Run | Scr Mat Min Mat Min Exi Min Mat Gar Mat Gar Fac Gar Sto Robot Analysis Total 2 | . 2 . . . . . . . . . . . . Derelict Logs Recovered 3 | . . 1 . 2 . . . . . . . . . Drone Launches . | . . . . . . . . . . . . . . Drone Recoveries . | . . . . . . . . . . . . . . Exploration | -11 -10 -10 -9 -9 -9 -8 -8 -8 -8 -8 -7 -7 -7 ------------- Run | Scr Mat Min Mat Min Exi Min Mat Gar Mat Gar Fac Gar Sto Turns Passed 18379 | 126 1332 698 1760 1327 795 1789 1816 3030 121 1797 1507 1587 694 Spaces Moved 8762 | 55 840 470 663 750 465 957 778 1398 44 753 659 709 221 Core 7 | 7 . . . . . . . . . . . . . Treads 5877 | 48 206 . 663 239 330 957 778 1398 44 753 461 . . Legs 1045 | . 103 . . . . . . . . . 12 709 221 Wheels 1833 | . 531 470 . 511 135 . . . . . 186 . . Hover . | . . . . . . . . . . . . . . Flight . | . . . . . . . . . . . . . . Fastest Speed 50 | 50 90 120 180 140 140 180 180 180 185 185 130 130 170 Average Speed 173 | 146 123 120 180 152 168 180 188 190 194 203 170 182 216 Slowest Speed 240 | 160 180 120 180 220 180 180 220 205 205 205 220 210 240 Overloaded Moves . | . . . . . . . . . . . . . . Propulsion Burnouts . | . . . . . . . . . . . . . . Robots Hopped . | . . . . . . . . . . . . . . Cave-ins Triggered . | . . . . . . . . . . . . . . Exploration Rate (%) 59 | 4 93 87 52 96 72 100 45 82 8 75 14 83 25 Regions Visited 13 Branch Regions 5 Pre-discovered Areas 2 | . . 1 . 1 . . . . . . . . . Known Exits Taken 4 | . . . 1 . . . 1 . 1 . 1 . . Unknown Exits Taken 6 | 1 1 1 . 1 1 1 . . . . . . . Scrap Searched 4 | . . 2 . 1 . 1 . . . . . . . Spaces Dug 14 | . 1 . . . . . 9 . . . . 3 1 Terrain Destroyed 59 | . 1 . 12 . . 23 12 . . . . 7 4 Melee 10 | . . . . . . . 9 . . . . . 1 Projectile 5 | . 1 . . . . . 3 . . . . . 1 AOE 44 | . . . 12 . . 23 . . . . . 7 2 Actions | -11 -10 -10 -9 -9 -9 -8 -8 -8 -8 -8 -7 -7 -7 --------- Run | Scr Mat Min Mat Min Exi Min Mat Gar Mat Gar Fac Gar Sto Total 10670 | 78 1003 524 1023 830 479 1001 1003 1633 71 901 880 882 362 Wait 629 | . 31 . 182 11 . 21 90 81 16 38 92 14 53 Move 8749 | 54 839 469 662 749 464 956 777 1397 43 752 658 708 221 Hop . | . . . . . . . . . . . . . . Pick Up 123 | 5 21 4 15 3 7 2 16 14 1 7 7 17 4 Fast Attach 54 | 7 4 1 9 1 . . 7 4 1 1 3 8 8 Attach 65 | . 4 3 6 7 2 1 4 7 . 4 12 11 4 Detach 4 | . . 1 . . . . . . . . . 3 . Swap 123 | . 15 . 17 . 2 5 7 20 2 11 19 16 9 Drop 122 | . 15 4 19 1 4 2 24 19 2 8 5 5 14 Fire 674 | 12 74 42 113 58 . 14 64 56 4 59 74 60 44 Melee 80 | . . . . . . . 13 23 1 13 10 15 5 Ram . | . . . . . . . . . . . . . . Kick . | . . . . . . . . . . . . . . Crush 4 | . . . . . . . 1 2 1 . . . . Escape Stasis 43 | . . . . . . . . 10 . 8 . 25 . Rewire . | . . . . . . . . . . . . . . Trap . | . . . . . . . . . . . . . . Miscellaneous . | . . . . . . . . . . . . . . Route ------- -11/Scrapyard -10/Materials (discovered 5 exits: *Mat x3 / [*Min x2]) -10/Mines (discovered 2 exits: *Mat x2) -9/Materials (discovered 4 exits: *Mat x2 / *Min x2) -9/Mines (discovered 3 exits: *Mat x2 / *Exi) -9/Exiles -8/Mines (discovered 2 exits: *Mat x2) -8/Materials (discovered 2 exits: *Fac / Gar) -8/Garrison (discovered 3 exits: *Mat x3) -8/Materials -8/Garrison (discovered 3 exits: *Fac x3) -7/Factory (discovered 2 exits: [*Fac] / Gar) -7/Garrison (discovered 2 exits: *Sto x2) -7/Storage History --------- Turn | Location | Event 6 | -11/Scrapyard | Discovered new exit (range 16) 127 | -11/Scrapyard | Entered Materials 311 | -10/Materials | Build established: Mutant 413 | -10/Materials | Discovered new exit (range 7) 566 | -10/Materials | Discovered new exit (range 11) 743 | -10/Materials | Discovered new exit (range 15) 913 | -10/Materials | Discovered new exit (range 12) 913 | -10/Materials | Central database locked down 1141 | -10/Materials | Discovered new exit (range 16) 1459 | -10/Materials | Entered Mines 1473 | -10/Mines | Received a Rocket Launcher from a helpful Derelict 1556 | -10/Mines | Discovered new exit (range 12) 1610 | -10/Mines | Core integrity fell below 50% 1630 | -10/Mines | Discovered new exit (range 9) 2026 | -10/Mines | Learned location of Zion (-7) 2157 | -10/Mines | Entered Materials 2157 | -9/Materials | Evolved 2 slots: Utility x2 2462 | -9/Materials | Build established: Hauler-Mutant 2858 | -9/Materials | Repaired Imp. Treads 2885 | -9/Materials | Repaired Lgt. Treads 2916 | -9/Materials | Discovered new exit (range 9) 3267 | -9/Materials | Discovered new exit (range 4) 3347 | -9/Materials | Identified exit to Mines 3463 | -9/Materials | Repaired Hrd. Medium Armor Plating 3707 | -9/Materials | Discovered new exit (range 16) 3757 | -9/Materials | First assault squad dispatched 3917 | -9/Materials | Entered Mines 3984 | -9/Mines | Met a Derelict bent on vengeance 4159 | -9/Mines | Learned Materials security intel 4387 | -9/Mines | Discovered new exit (range 5) 4505 | -9/Mines | Assembled infested the area 4713 | -9/Mines | Discovered new exit (range 16) 5237 | -9/Mines | Deemed a non-threat by the Exiles lab entrance 5238 | -9/Mines | Discovered new exit (range 5) 5244 | -9/Mines | Entered Exiles 5300 | -9/Exiles | Met 8R-AWN 5323 | -9/Exiles | Met EX-HEX 5363 | -9/Exiles | Met EX-BIN 5379 | -9/Exiles | Aligned with FarCom system 5381 | -9/Exiles | Given EX-Vault access code 5413 | -9/Exiles | Opened EX-Vault 5423 | -9/Exiles | Found Potential Leg 5425 | -9/Exiles | Found Potential Leg 5428 | -9/Exiles | Found Gui. Plasma Cannon 5444 | -9/Exiles | Found Lightpack 2.0 5482 | -9/Exiles | Warned to stay clear of 0b10 Research branches 5533 | -9/Exiles | Met EX-DEC 6018 | -9/Exiles | Discovered new exit (range 14) 6039 | -9/Exiles | Stole three prototypes: Potential Leg, Lightpack 2.0, Gui. Plasma Cannon 6039 | -9/Exiles | Entered Mines 7736 | -8/Mines | Discovered new exit (range 7) 7738 | -8/Mines | Discovered new exit (range 7) 7828 | -8/Mines | Entered Materials 7828 | -8/Materials | Evolved 2 slots: Utility x1, Weapon x1 8597 | -8/Materials | Garrison activated, responded to threat 8629 | -8/Materials | Build established: Hauler-Skirmisher 9140 | -8/Materials | Discovered new exit (range 13) 9414 | -8/Materials | Garrison activated, responded to threat 9484 | -8/Materials | Identified exit to Garrison 9613 | -8/Materials | Garrison activated, responded to threat 9644 | -8/Materials | Entered Garrison 9689 | -8/Garrison | Triggered checkpoint 9738 | -8/Garrison | Triggered checkpoint 9898 | -8/Garrison | Triggered checkpoint 9959 | -8/Garrison | Discovered new exit (range 10) 9986 | -8/Garrison | Installed Relay Interface Framework 10066 | -8/Garrison | Garrison Relay disabled 10240 | -8/Garrison | Triggered checkpoint 10290 | -8/Garrison | Garrison Relay disabled 10452 | -8/Garrison | Triggered checkpoint 10682 | -8/Garrison | Triggered checkpoint 10999 | -8/Garrison | Discovered new exit (range 15) 11236 | -8/Garrison | Triggered checkpoint 11312 | -8/Garrison | Garrison Relay disabled 11960 | -8/Garrison | Discovered new exit (range 14) 12098 | -8/Garrison | Triggered checkpoint 12244 | -8/Garrison | Garrison Relay disabled 12674 | -8/Garrison | Entered Materials 12674 | -8/Materials | Accompanied by 2 allies 12714 | -8/Materials | Garrison activated, responded to threat 12727 | -8/Materials | Build established: Bothacker-Skirmisher 12784 | -8/Materials | Identified exit to Garrison 12795 | -8/Materials | Entered Garrison 12805 | -8/Garrison | Expanded RIF knowledge: Alert ID Control 12875 | -8/Garrison | Triggered checkpoint 12935 | -8/Garrison | Triggered checkpoint 13031 | -8/Garrison | Garrison Relay disabled 13139 | -8/Garrison | Triggered checkpoint 13263 | -8/Garrison | Discovered new exit (range 10) 13318 | -8/Garrison | Triggered checkpoint 13374 | -8/Garrison | Garrison Relay disabled 13465 | -8/Garrison | Triggered checkpoint 13499 | -8/Garrison | Destroyed 8 combat bots 13663 | -8/Garrison | Discovered new exit (range 10) 13718 | -8/Garrison | Triggered checkpoint 13766 | -8/Garrison | Garrison Relay disabled 13927 | -8/Garrison | Discovered new exit (range 9) 14030 | -8/Garrison | Triggered checkpoint 14107 | -8/Garrison | Garrison Relay disabled 14214 | -8/Garrison | Triggered checkpoint 14592 | -8/Garrison | Entered Factory 14592 | -7/Factory | Evolved 2 slots: Utility x2 14594 | -7/Factory | FarCom data flow suspended 15050 | -7/Factory | Build established: Bothacker-Mutant 15288 | -7/Factory | Discovered new exit (range 15) 15403 | -7/Factory | Build established: Bothacker-Gunner 15699 | -7/Factory | Garrison activated, responded to threat 15826 | -7/Factory | Identified exit to Garrison 15949 | -7/Factory | Garrison activated, responded to threat 15954 | -7/Factory | Lost 5 parts (1p1u3w) 15999 | -7/Factory | Destroyed 8 combat bots 16099 | -7/Factory | Entered Garrison 16127 | -7/Garrison | Triggered checkpoint 16192 | -7/Garrison | Garrison Relay disabled 16258 | -7/Garrison | Triggered checkpoint 16321 | -7/Garrison | Triggered checkpoint 16402 | -7/Garrison | Lost 4 parts (1p3w) 16420 | -7/Garrison | Triggered checkpoint 16575 | -7/Garrison | Triggered checkpoint 16603 | -7/Garrison | Garrison Relay disabled 16649 | -7/Garrison | Discovered new exit (range 13) 16687 | -7/Garrison | Expanded RIF knowledge: Autooverride 16767 | -7/Garrison | Core integrity fell below 50% 16852 | -7/Garrison | Lost 5 parts (1p1u3w) 16872 | -7/Garrison | Triggered checkpoint 16961 | -7/Garrison | Discovered new exit (range 10) 17007 | -7/Garrison | Triggered checkpoint 17029 | -7/Garrison | Garrison Relay disabled 17234 | -7/Garrison | Triggered checkpoint 17270 | -7/Garrison | Garrison Relay disabled 17524 | -7/Garrison | Build established: Bothacker-Mutant 17686 | -7/Garrison | Entered Storage 17686 | -7/Storage | Accompanied by 3 allies 17845 | -7/Storage | Build established: Bothacker-Gunner 18146 | -7/Storage | Core integrity fell below 20% 18367 | -7/Storage | Lost 4 parts (2n2w) 18380 | -7/Storage | Destroyed by S-27 Virus with Autogun Last Messages --------------- 18338_ Acquired 67 matter. 18341_ Y-54 Guardian destroyed. 18344_ Acquired Imp. Light Armor Plating. 18345_ U-05 Engineer lays Concrete. 18346_ Acquired 19 matter. 18353_ Acquired Datajack. 18355_ Discarded Relay Coupler [Hunter]. 18359_ Acquired Imp. Deuterium Engine. 18360_ Extracted 50 matter. 18364_ Acquired 51 matter. 18366_ R-06 Scavenger collects Imp. Deuterium Engine. 18370_ Acquired 41 matter. 18372_ Acquired 68 matter. 18374_ A-02 Transporter destroyed. 18374_ U-05 Engineer lays Concrete. 18377_ Destroyed Tractor Beam. 18379_ U-05 Engineer builds a Wall. 18380_ Acquired 12 matter. 18380_ C-30 ARC bursts open, deploying its payload. 18380_ S-27 Virus unfolds itself. Map ----- +----------------------------------------------------+ | ?????????????????????????????????????????????????? | | ?????????????????????????????????????????????????? | | ?????????????????????????????????????????????????? | | ????????????????????????####?????????????????????? | | ???????????????????????? ?????????????????????? | | ???????????????????????? #????????????????????? | | ???????????????????????? T????????????????????? | | ????????????????????????#/[!#????????????????????? | | ????????????????????????#[%/#????????????????????? | | ????????????????????????#/%!#????????????????????? | | ????????????????????????# #????????????????????? | | ????????????????????????# ##???????????????????? | | ????????????????????????# ??????????m?????????? | | ????????????????????????# % ????????????????????? | | ????????????????????????# % ?r??????????????????? | | ????????????????????????;u %#????????????????????? | | ????????????????????????#% #????????????a???????? | | ????????????????????????# %#????????????????????? | | ????????????????????????# u#????????????????????? | | ????????????????????????#% ###??????????????????? | | ????????????????????????#^^ ""#??????????????????? | | ????????????????????????#^^ ""#??????????????????? | | ????????????????????????# T"#??????????????????? | | ????????????????????????# ""#?????????????###### | | ????????????????????????#% ""#?????????????# | | ????????????????????????#@ ###?????????????? | | ????????????????????????# [=#???????????????# | | ????????????????????????# =#???????????????# | | ????????????????????????# ==##??????????????# | | ????????????????????????#! ###?????????????# | | ???????????########?????# ! + "?????????????# | | ???????????#** ***#?????#![ #T#?????????????? | | ???????????#** ***#?????#=!s###???????????????? | | ????????????** #?????# s=#####################+ | | ????????????? ??????# =s [ | | ????????????##" "##?????# =!= | | ????????????#T #?????# == [ | | ????????????## #?????# *!* ###################+ | | ???????"#########+#######[!%= ######????????????# | | ???????" =| # [[]#???????????#T | | ???????" * + #???????????## | | ???????"#T##################### ^!!#????????????#! | | ??????????????????????????????######????????????#! | | ?????????????????????????????????????????????????! | | ?????????????????????????????????????????????????! | | ?????????????????????????????????????????????????# | | ?????????????????????????????????????????????????? | | | | | | | +----------------------------------------------------+ Best States ------------- Heat Dissipation 34 Energy Generation 18 Energy Capacity 265 Matter Stores 300 Matter Capacity 300 Sight Range 22 Terrain Scan Density 10 Armor Coverage 450 Resistance: KI 30 Core Shielding 20 Weapon Cycling 15 Evasion (%) 42 Targeting Accuracy 8 Recoil Reduction 2 Item Schematics ----------------- Arm. Wheel | -9/Materials | Scanalyzed Arm. Treads | -8/Materials | Scanalyzed Lgt. Fission Core | -8/Materials | Scanalyzed Imp. Medium Armor Plating | -8/Materials | Scanalyzed Robot Schematics ------------------ None Fabricated ------------ Nothing Alien Tech Used ----------------- None Achievements -------------- None Challenges ------------ None Game ------ Seed BladeGuidedAutohacker Manual? 0 Play Time 01:40:24 Cumulative 443.9 hours Start 2020.09.02 @ 15:43:14 End 2020.09.02 @ 17:47:16 Sessions 1 Manual Loads 0 Difficulty Rogue Special Mode None Game No. 299 Rogue 299 Adventurer 0 Explorer 0 Win Type - Total 4 Types 4/0/0/0/0/0/0 Lore% 86 Gallery% 87 Achievement% 66 Wizard Run 0 Options --------- ASCII 0 Keyboard 0 Movement Mouse Keybinds 1 Fullscreen 2 Font 24/Smallcaps Map View 76x50 Tactical HUD 1 Map Filters NONE Filters NONE Steam 1 RUN: a5cd07f3-d629-4da6-a1b6-59a026761924